bitfinex/quotes_BTCUSD_20250221
["timestamp","ask_amount","ask_price","bid_price","bid_amount"]
[1740108170321,0.00995872,98318.0,98313.0,0.152573]
[1740108171539,0.00995872,98318.0,98313.0,0.155573]
[1740108171745,0.00995872,98318.0,98313.0,0.158573]
[1740108172089,0.16252472,98318.0,98313.0,0.006]
[1740108173257,0.152567,98317.0,98313.0,0.006]
[1740108173618,0.00995872,98318.0,98313.0,0.006]
[1740108174039,0.00995872,98318.0,98313.0,0.003]
[1740108174399,0.00995872,98318.0,98313.0,0.007]
[1740108174805,0.00995872,98318.0,98313.0,0.003]
[1740108175105,0.00995872,98318.0,98313.0,0.006]
[1740108176359,0.16252472,98318.0,98313.0,0.006]
[1740108177541,0.00995872,98318.0,98313.0,0.158573]
[1740108178326,0.00995872,98318.0,98313.0,0.006]
[1740108178521,0.00995872,98318.0,98314.0,0.15257]
[1740108178740,0.00995872,98318.0,98314.0,0.152572]
[1740108178944,4.332e-05,98318.0,98314.0,0.1572008]
[1740108180007,4.332e-05,98318.0,98314.0,0.1632008]
[1740108180339,0.00089422,98318.0,98314.0,0.1632008]
[1740108180969,0.00089422,98318.0,98315.0,0.0046288]
[1740108181696,0.00089422,98318.0,98315.0,0.1571988]
[1740108181971,0.00089422,98318.0,98316.0,0.25521369]
[1740108182757,0.00089422,98318.0,98316.0,0.26532447]
[1740108183664,0.00089422,98318.0,98316.0,0.27232447]
[1740108183910,0.00089422,98318.0,98316.0,0.27932447]
[1740108184315,0.00080337,98318.0,98316.0,0.27932447]
[1740108186021,0.00080337,98318.0,98317.0,0.0046141]
[1740108186155,0.00080337,98318.0,98317.0,0.10725979]
[1740108187124,0.00080337,98318.0,98317.0,0.11425979]
[1740108187326,0.00080337,98318.0,98317.0,0.12125979]
[1740108190073,0.00080337,98318.0,98317.0,0.11425979]
[1740108190364,0.00080337,98318.0,98317.0,0.12125979]
[1740108190588,0.00080337,98318.0,98317.0,0.11425979]
[1740108190792,0.00080337,98318.0,98317.0,0.12125979]
[1740108190997,1.7e-07,98320.0,98318.0,0.302566]
[1740108191201,1.7e-07,98320.0,98319.0,0.47542337]
[1740108191409,1.7e-07,98320.0,98319.0,1.82879858]
[1740108191817,1.7e-07,98320.0,98319.0,1.83341268]
[1740108191995,1.7e-07,98320.0,98319.0,1.86510749]
[1740108192222,1.7e-07,98320.0,98319.0,1.83341268]
[1740108192430,1.7e-07,98320.0,98319.0,3.33341268]
[1740108192859,1.7e-07,98320.0,98319.0,3.34041268]
[1740108193065,0.0008509,98328.0,98324.0,0.302556]
[1740108193270,0.0008509,98328.0,98324.0,0.40520169]
[1740108194490,0.0008509,98328.0,98324.0,0.41220169]
[1740108195432,0.0008509,98328.0,98324.0,0.41920169]
[1740108195616,0.0008509,98328.0,98324.0,0.42381579]
[1740108202273,0.0008509,98328.0,98324.0,0.4438767]
[1740108203947,0.0008509,98328.0,98324.0,0.53497819]
[1740108206882,0.0008509,98328.0,98324.0,0.54249819]
[1740108207480,0.0008509,98328.0,98324.0,0.53497819]
[1740108207666,0.0008509,98328.0,98324.0,0.4513967]
[1740108208718,0.0008509,98328.0,98324.0,0.4467826]
[1740108211008,0.0008509,98328.0,98324.0,0.2892626]
[1740108211208,0.0008509,98328.0,98324.0,0.2968226]
[1740108211600,0.0008509,98328.0,98324.0,0.27676169]
[1740108212109,0.0008509,98328.0,98324.0,0.26976169]
[1740108212309,0.0008509,98328.0,98324.0,0.26276169]
[1740108212608,0.0008509,98328.0,98324.0,0.27676169]
[1740108213424,0.0008509,98328.0,98324.0,0.26976169]
[1740108214795,0.0008509,98328.0,98324.0,0.27676169]
[1740108227299,0.0008509,98328.0,98324.0,0.30852372]
[1740108227472,0.0008509,98328.0,98324.0,0.27676169]
[1740108227638,0.0008509,98328.0,98324.0,0.30852413]
[1740108228003,0.0008509,98328.0,98324.0,1.80852413]
[1740108228394,9e-07,98328.0,98327.0,0.16709285]
[1740108228603,4.421e-05,98328.0,98327.0,1.29451375]
[1740108228754,4.421e-05,98328.0,98327.0,1.32627619]
[1740108229323,4.421e-05,98328.0,98327.0,2.82627619]
[1740108229837,4.421e-05,98328.0,98327.0,2.83327619]
[1740108230384,4.421e-05,98328.0,98327.0,2.82627619]
[1740108230617,4.421e-05,98328.0,98327.0,2.83327619]
[1740108230822,4.421e-05,98328.0,98327.0,2.84027619]
[1740108231041,4.421e-05,98328.0,98327.0,2.83327619]
[1740108231441,4.421e-05,98328.0,98327.0,3.16887619]
[1740108231847,4.421e-05,98328.0,98327.0,3.16187619]
[1740108232489,4.421e-05,98328.0,98327.0,3.16887619]
[1740108232653,4.421e-05,98328.0,98327.0,3.16187619]
[1740108233123,4.421e-05,98328.0,98327.0,3.16887619]
[1740108233628,4.421e-05,98328.0,98327.0,1.66187619]
[1740108234065,4.421e-05,98328.0,98327.0,1.66887619]
[1740108234200,4.421e-05,98328.0,98327.0,1.66187619]
[1740108234646,4.421e-05,98328.0,98327.0,1.66887619]
[1740108235047,4.421e-05,98328.0,98327.0,1.68234723]
[1740108235599,4.421e-05,98328.0,98327.0,1.68934723]
[1740108235947,4.421e-05,98328.0,98327.0,1.68234723]
[1740108236777,4.421e-05,98328.0,98327.0,1.67534723]
[1740108237094,4.421e-05,98328.0,98327.0,1.68234723]
[1740108237711,4.421e-05,98328.0,98327.0,1.68934723]
[1740108238074,4.421e-05,98328.0,98327.0,1.68234723]
[1740108238457,4.421e-05,98328.0,98327.0,3.18934723]
[1740108240928,4.421e-05,98328.0,98327.0,1.68934723]
[1740108244984,4.421e-05,98328.0,98327.0,3.18934723]
[1740108250404,4.421e-05,98328.0,98327.0,3.19104863]
[1740108252219,0.0008497,98338.0,98337.0,0.152536]
[1740108252418,0.00089301,98338.0,98337.0,1.2799569]
[1740108253834,0.00089301,98338.0,98337.0,1.2869569]
[1740108254236,0.00089301,98338.0,98337.0,1.2939569]
[1740108260460,0.00089301,98338.0,98337.0,1.31444412]
[1740108261424,0.00089301,98338.0,98337.0,1.34622183]
[1740108262229,0.00089301,98338.0,98337.0,1.34792323]
[1740108277034,0.00089301,98338.0,98337.0,1.49792323]
[1740108280946,0.00089301,98338.0,98337.0,2.99792323]
[1740108281190,1e-08,98338.0,98337.0,2.99792323]
[1740108281754,8.1e-07,98340.0,98339.0,0.31707385]
[1740108281953,6.1e-07,98346.0,98341.0,0.31707085]
[1740108282155,0.0778,98371.0,98355.0,0.302508]
[1740108282478,0.0877725,98371.0,98355.0,1.57099451]
[1740108282677,0.0877725,98371.0,98355.0,3.07099451]
[1740108283239,0.0877725,98371.0,98355.0,3.07799451]
[1740108283681,0.0877725,98371.0,98355.0,3.08499451]
[1740108285036,0.0877725,98371.0,98355.0,3.09199451]
[1740108285180,0.0877725,98371.0,98355.0,1.57099451]
[1740108285663,0.0877725,98371.0,98355.0,1.57799451]
[1740108286038,0.0877725,98371.0,98355.0,1.58499451]
[1740108286210,0.0877725,98371.0,98355.0,1.59199451]
[1740108286399,0.0877725,98371.0,98355.0,1.57099451]
[1740108286823,0.0877725,98371.0,98355.0,1.58499451]
[1740108287991,0.0877725,98371.0,98355.0,1.57799451]
[1740108288397,0.0877725,98371.0,98355.0,1.5462303]
[1740108288716,0.0877725,98371.0,98355.0,1.57340847]
[1740108289141,0.0877725,98371.0,98355.0,1.55940847]
[1740108289342,0.0877725,98371.0,98355.0,1.57340847]
[1740108289517,0.0877725,98371.0,98355.0,1.58111872]
[1740108289721,0.0877725,98371.0,98355.0,3.08111872]
[1740108290485,0.0877725,98371.0,98355.0,1.58111872]
[1740108296738,0.0099725,98371.0,98355.0,1.58111872]
[1740108297303,0.1213,98377.0,98355.0,1.58111872]
[1740108297609,0.1312385,98377.0,98355.0,3.08111872]
[1740108298104,0.1312385,98377.0,98355.0,3.07411872]
[1740108298309,0.1312385,98377.0,98355.0,3.06711872]
[1740108298612,0.1312385,98377.0,98355.0,3.07411872]
[1740108298993,0.1312385,98377.0,98355.0,3.07511872]
[1740108299637,0.0859385,98377.0,98355.0,3.07511872]
[1740108299840,1e-06,98357.0,98356.0,0.33704785]
[1740108299998,1e-06,98357.0,98356.0,0.43969354]
[1740108300371,1e-06,98357.0,98356.0,0.47135827]
[1740108300592,1e-06,98357.0,98356.0,1.97135827]
[1740108301988,1e-06,98357.0,98356.0,1.97835827]
[1740108302189,1e-06,98357.0,98356.0,1.97935827]
[1740108302394,1e-06,98357.0,98356.0,1.98035827]
[1740108302973,1e-06,98357.0,98356.0,2.30895827]
[1740108304407,1e-06,98357.0,98356.0,2.30795827]
[1740108304729,1e-06,98357.0,98356.0,2.30895827]
[1740108305079,1e-06,98357.0,98356.0,2.30095827]
[1740108305293,1e-06,98357.0,98356.0,2.30195827]
[1740108305847,1e-06,98357.0,98356.0,2.27029354]
[1740108306306,1e-06,98357.0,98356.0,2.30195767]
[1740108307548,0.088759,98382.0,98369.0,0.152487]
[1740108307672,0.00128401,98370.0,98369.0,1.2799079]
[1740108308467,0.00128401,98370.0,98369.0,1.4299079]
[1740108308785,1e-08,98370.0,98369.0,1.4299079]
[1740108308984,1e-08,98370.0,98369.0,1.4369079]
[1740108310091,0.00085051,98370.0,98369.0,1.4439079]
[1740108310294,0.00085051,98370.0,98369.0,1.4299079]
[1740108310516,0.00085051,98370.0,98369.0,1.4369079]
[1740108311567,0.00085051,98370.0,98369.0,1.44713787]
[1740108311773,0.00085051,98370.0,98369.0,1.45413787]
[1740108312555,0.00085051,98370.0,98369.0,1.47493134]
[1740108315256,0.00085051,98370.0,98369.0,2.97493134]
[1740108316309,0.00085051,98370.0,98369.0,3.00665711]
[1740108319026,5.1e-07,98370.0,98369.0,3.02119796]
[1740108319198,3.1e-07,98376.0,98375.0,0.31701785]
[1740108319432,0.0001302,98376.0,98375.0,0.55310631]
[1740108319836,0.0001302,98376.0,98375.0,2.05310631]
[1740108320650,0.0001302,98376.0,98375.0,2.06010631]
[1740108321143,0.0001302,98376.0,98375.0,2.06710631]
[1740108323253,0.0001302,98376.0,98375.0,0.56710631]
[1740108323809,0.0001302,98376.0,98375.0,2.06710631]
[1740108324312,2e-07,98376.0,98375.0,2.06710631]
[1740108326905,2e-07,98376.0,98375.0,0.56710631]
[1740108327471,2e-07,98376.0,98375.0,2.08768866]
[1740108328438,2e-07,98376.0,98375.0,2.09516866]
[1740108330455,2e-07,98376.0,98375.0,0.59516866]
[1740108330997,2e-07,98376.0,98375.0,2.09516866]
[1740108333966,2e-07,98376.0,98375.0,0.59516866]
[1740108334372,2e-07,98376.0,98375.0,2.09516866]
[1740108335045,0.0008506,98376.0,98375.0,2.09516866]
[1740108339565,0.0008506,98376.0,98375.0,0.57314781]
[1740108339772,0.0008506,98376.0,98375.0,0.54886204]
[1740108340637,0.0008506,98376.0,98375.0,0.54142204]
[1740108340852,0.0008506,98376.0,98375.0,0.54886204]
[1740108343637,0.0008506,98376.0,98375.0,0.54882204]
[1740108347317,0.0008506,98376.0,98375.0,0.55052264]
[1740108361120,0.0008506,98376.0,98375.0,2.08222513]
[1740108362640,0.0008506,98376.0,98375.0,2.09676598]
[1740108364031,0.0008506,98376.0,98375.0,0.59676598]
[1740108364440,0.0008506,98376.0,98375.0,2.09676598]
[1740108366686,0.0008506,98376.0,98375.0,0.59676598]
[1740108370796,0.0008506,98376.0,98375.0,2.09676598]
[1740108378921,0.0008506,98376.0,98375.0,0.59676598]
[1740108379506,0.0008506,98376.0,98375.0,2.09676598]
[1740108382439,0.0008506,98376.0,98375.0,0.59676598]
[1740108383354,0.0008506,98376.0,98375.0,0.59680598]
[1740108384110,0.00039456,98376.0,98375.0,0.59680598]
[1740108384319,0.00039456,98376.0,98375.0,2.09680598]
[1740108387330,5.6e-07,98376.0,98375.0,0.59680598]
[1740108387827,5.6e-07,98376.0,98375.0,2.09680598]
[1740108391739,5.6e-07,98376.0,98375.0,0.59680598]
[1740108392175,5.6e-07,98376.0,98375.0,2.08980598]
[1740108392360,5.6e-07,98376.0,98375.0,2.09080598]
[1740108392742,5.6e-07,98376.0,98375.0,2.08280598]
[1740108392968,5.6e-07,98376.0,98375.0,2.08380598]
[1740108393165,5.6e-07,98376.0,98375.0,2.08480598]
[1740108393610,5.6e-07,98376.0,98375.0,2.08580598]
[1740108394351,5.6e-07,98376.0,98375.0,2.07836598]
[1740108394547,5.6e-07,98376.0,98375.0,2.08576598]
[1740108396182,5.6e-07,98376.0,98375.0,0.58576598]
[1740108396385,5.6e-07,98376.0,98375.0,0.57836598]
[1740108396523,5.6e-07,98376.0,98375.0,0.58576598]
[1740108396890,5.6e-07,98376.0,98375.0,2.08576598]
[1740108397491,5.6e-07,98376.0,98375.0,2.07836598]
[1740108397832,5.6e-07,98376.0,98375.0,2.08576598]
[1740108400421,5.6e-07,98376.0,98375.0,2.07836598]
[1740108400622,5.6e-07,98376.0,98375.0,2.08576598]
[1740108411057,5.6e-07,98376.0,98375.0,2.10479648]
[1740108411468,1.6e-07,98383.0,98382.0,0.152466]
[1740108411665,1.6e-07,98383.0,98382.0,1.31158939]
[1740108412071,1.6e-07,98383.0,98382.0,1.48061989]
[1740108412645,1.6e-07,98383.0,98382.0,1.48761989]
[1740108412845,1.6e-07,98383.0,98382.0,1.49461989]
[1740108419186,1.6e-07,98383.0,98382.0,1.51464018]
[1740108421525,1.6e-07,98383.0,98382.0,1.52196018]
[1740108421752,1.6e-07,98383.0,98382.0,1.49025769]
[1740108423295,1.6e-07,98383.0,98382.0,1.52195484]
[1740108424629,1.6e-07,98383.0,98382.0,1.49025769]
[1740108425177,1.6e-07,98383.0,98382.0,1.52195468]
[1740108425391,1.6e-07,98383.0,98382.0,1.49025769]
[1740108425600,1.6e-07,98383.0,98382.0,1.52195395]
[1740108426827,1.6e-07,98383.0,98382.0,1.49025769]
[1740108428061,1.6e-07,98383.0,98382.0,1.49195909]
[1740108429068,0.0902366,98391.0,98390.0,0.152454]
[1740108429268,0.0902366,98391.0,98390.0,0.25509969]
[1740108429466,0.0802464,98391.0,98390.0,0.25509969]
[1740108429681,0.0802464,98391.0,98390.0,0.27413019]
[1740108430884,0.0802464,98391.0,98390.0,0.28113019]
[1740108431082,0.0802464,98391.0,98390.0,0.28813019]
[1740108431578,0.08031238,98391.0,98390.0,0.28813019]
[1740108433762,0.08031238,98391.0,98390.0,0.30891198]
[1740108437765,6.598e-05,98391.0,98390.0,0.30891198]
[1740108438726,6.598e-05,98391.0,98390.0,0.34060183]
[1740108439712,6.598e-05,98391.0,98390.0,0.34230303]
[1740108439902,6.598e-05,98391.0,98390.0,0.31061318]
[1740108440113,0.00091658,98391.0,98390.0,0.31061318]
[1740108450834,0.00091658,98391.0,98390.0,0.31793318]
[1740108454845,0.00091658,98391.0,98390.0,0.31061318]
[1740108455061,0.00091658,98391.0,98390.0,0.31793318]
[1740108457857,0.00091658,98391.0,98390.0,0.34962617]
[1740108460515,5.8e-07,98393.0,98392.0,0.152451]
[1740108460652,4.8e-07,98403.0,98402.0,0.152435]
[1740108460866,4.8e-07,98403.0,98402.0,1.41324099]
[1740108461042,4.8e-07,98403.0,98402.0,2.91324099]
[1740108461437,4.8e-07,98403.0,98402.0,1.42052099]
[1740108462056,4.8e-07,98403.0,98402.0,1.44655149]
[1740108463528,4.8e-07,98403.0,98402.0,1.45355149]
[1740108465044,4.8e-07,98403.0,98402.0,1.4218585]
[1740108466328,4.8e-07,98403.0,98402.0,1.44204991]
[1740108468589,0.07540048,98403.0,98402.0,0.4099947]
[1740108469000,0.07540048,98403.0,98402.0,0.38980329]
[1740108469198,0.07540048,98403.0,98402.0,0.29539119]
[1740108469840,0.07540048,98403.0,98402.0,0.28839119]
[1740108470411,0.07540048,98403.0,98402.0,0.29539119]
[1740108470619,0.07540048,98403.0,98402.0,0.28839119]
[1740108471023,0.07540048,98403.0,98402.0,0.29539119]
[1740108472425,0.07540048,98403.0,98402.0,0.28839119]
[1740108472629,0.07540048,98403.0,98402.0,0.29539119]
[1740108474601,0.12130048,98403.0,98402.0,0.29709219]
[1740108476827,0.12130048,98403.0,98402.0,0.28981219]
[1740108477030,0.12130048,98403.0,98402.0,0.14469719]
[1740108477626,0.12130048,98403.0,98402.0,0.29713219]
[1740108477965,0.12130048,98403.0,98402.0,0.28981219]
[1740108485944,0.12130048,98403.0,98402.0,0.28281219]
[1740108486076,0.12130048,98403.0,98402.0,0.28981219]
[1740108486472,0.12130048,98403.0,98402.0,0.28281219]
[1740108487003,0.12130048,98403.0,98402.0,0.28981219]
[1740108493312,0.12130048,98403.0,98402.0,0.27078169]
[1740108493454,0.12130048,98403.0,98402.0,0.11834669]
[1740108494051,0.12130048,98403.0,98402.0,0.27078169]
[1740108494282,0.12130048,98403.0,98402.0,0.28977592]
[1740108520654,0.07540048,98403.0,98402.0,0.28977592]
[1740108528503,0.07540048,98403.0,98402.0,0.27078169]
[1740108534232,0.22783448,98403.0,98402.0,0.015701]
[1740108538950,0.22783448,98403.0,98402.0,0.03472633]
[1740108540668,0.22783448,98403.0,98402.0,0.015701]
[1740108544288,0.07540048,98403.0,98402.0,0.015701]
[1740108547362,0.07540048,98403.0,98402.0,0.168136]
[1740108547870,4.8e-07,98403.0,98402.0,0.168136]
[1740108583490,4.8e-07,98403.0,98402.0,0.015701]
[1740108583666,4.8e-07,98403.0,98402.0,0.168136]
[1740108595875,0.23063448,98403.0,98402.0,0.015701]
[1740108596098,0.27983448,98403.0,98402.0,0.015701]
[1740108596850,0.76213145,98403.0,98402.0,0.001701]
[1740108597333,0.76213145,98403.0,98402.0,0.010701]
[1740108597521,0.76213145,98403.0,98402.0,0.008701]
[1740108597857,0.76213145,98403.0,98402.0,0.001701]
[1740108598138,0.76213145,98403.0,98402.0,0.005701]
[1740108599806,0.60969745,98403.0,98402.0,0.005701]
[1740108602330,0.40050048,98403.0,98402.0,0.005701]
[1740108602475,0.32230048,98403.0,98402.0,0.005701]
[1740108606258,0.40370048,98403.0,98402.0,0.005701]
[1740108606628,0.40370048,98403.0,98402.0,0.003701]
[1740108606796,0.40370048,98403.0,98402.0,0.001701]
[1740108608626,0.55613448,98403.0,98402.0,0.001701]
[1740108610011,0.55613448,98403.0,98402.0,0.002701]
[1740108610212,0.55613448,98403.0,98402.0,0.003701]
[1740108610386,0.55613448,98403.0,98402.0,0.002701]
[1740108611019,0.55613448,98403.0,98402.0,0.001701]
[1740108611180,0.55613448,98403.0,98402.0,0.003701]
[1740108611783,0.55613448,98403.0,98402.0,0.004701]
[1740108612489,0.55613448,98403.0,98402.0,0.003701]
[1740108612660,0.55613448,98403.0,98402.0,0.005701]
[1740108615103,0.55613448,98403.0,98402.0,0.003701]
[1740108616198,0.55613448,98403.0,98402.0,0.001701]
[1740108616981,0.55613448,98403.0,98402.0,0.002701]
[1740108617430,0.55613448,98403.0,98402.0,0.003701]
[1740108617616,0.75583448,98403.0,98402.0,0.003701]
[1740108617856,0.96112586,98403.0,98402.0,0.003701]
[1740108617996,0.85848017,98403.0,98402.0,0.003701]
[1740108618404,0.85848017,98403.0,98402.0,0.002701]
[1740108618608,0.86599851,98403.0,98402.0,0.002701]
[1740108619162,0.86599851,98403.0,98402.0,0.001701]
[1740108619544,0.86699851,98403.0,98402.0,0.001701]
[1740108624176,0.86599851,98403.0,98402.0,0.001701]
[1740108624500,0.86699851,98403.0,98402.0,0.001701]
[1740108644571,0.91902559,98403.0,98402.0,0.001701]
[1740108644768,0.88153936,98403.0,98402.0,0.001701]
[1740108644976,0.91189953,98403.0,98402.0,0.001701]
[1740108645187,0.93189953,98403.0,98402.0,0.001701]
[1740108645402,0.95189953,98403.0,98402.0,0.001701]
[1740108686815,0.90219953,98403.0,98402.0,0.001701]
[1740108687803,0.78625868,98403.0,98402.0,0.001701]
[1740108688978,0.76625868,98403.0,98402.0,0.001701]
[1740108689342,0.78625868,98403.0,98402.0,0.001701]
[1740108697813,0.76625868,98403.0,98402.0,0.001701]
[1740108698033,0.78625868,98403.0,98402.0,0.001701]
[1740108707499,0.76625868,98403.0,98402.0,0.001701]
[1740108707709,0.78625868,98403.0,98402.0,0.001701]
[1740108710823,0.82079953,98403.0,98402.0,1e-06]
[1740108711029,0.99854522,98403.0,98402.0,1e-06]
[1740108711228,0.89589953,98403.0,98402.0,1e-06]
[1740108712646,0.89489953,98403.0,98402.0,1e-06]
[1740108713058,0.89589953,98403.0,98402.0,1e-06]
[1740108714226,0.89789953,98403.0,98402.0,1e-06]
[1740108715510,0.89789953,98403.0,98390.0,2e-07]
[1740108715511,0.421252,98391.0,98390.0,2e-07]
[1740108715713,0.57607871,98391.0,98390.0,2e-07]
[1740108717286,0.57707871,98391.0,98390.0,2e-07]
[1740108718655,0.89937871,98391.0,98390.0,2e-07]
[1740108720757,0.90137871,98391.0,98390.0,2e-07]
[1740108721388,1.0040244,98391.0,98390.0,2e-07]
[1740108730771,0.322465,98383.0,98382.0,6e-07]
[1740108730978,0.55251171,98383.0,98382.0,6e-07]
[1740108731475,0.57251171,98383.0,98382.0,6e-07]
[1740108732317,0.322476,98376.0,98361.0,0.0452]
[1740108732520,0.43966254,98376.0,98375.0,0.00176658]
[1740108736234,0.51736254,98376.0,98375.0,5.8e-07]
[1740108736664,0.83966254,98376.0,98375.0,5.8e-07]
[1740108737396,0.84720328,98376.0,98375.0,5.8e-07]
[1740108738973,0.83578577,98376.0,98375.0,5.8e-07]
[1740108739373,0.86613904,98376.0,98375.0,5.8e-07]
[1740108743578,0.78843904,98376.0,98375.0,5.8e-07]
[1740108743778,0.78929004,98376.0,98375.0,5.8e-07]
[1740108745415,0.87247088,98376.0,98375.0,5.8e-07]
[1740108751303,0.85247088,98376.0,98375.0,5.8e-07]
[1740108751454,0.87247088,98376.0,98375.0,5.8e-07]
[1740108756892,0.78929004,98376.0,98375.0,5.8e-07]
[1740108757606,0.76929004,98376.0,98375.0,5.8e-07]
[1740108757812,0.78929004,98376.0,98375.0,5.8e-07]
[1740108762834,0.68764004,98376.0,98375.0,5.8e-07]
[1740108763051,0.64823155,98376.0,98375.0,5.8e-07]
[1740108763578,0.80070755,98376.0,98375.0,5.8e-07]
[1740108781797,0.92335324,98376.0,98375.0,5.8e-07]
[1740108782001,0.302485,98370.0,98369.0,3.8e-07]
[1740108782184,0.77232481,98370.0,98369.0,3.8e-07]
[1740108782562,0.81232481,98370.0,98369.0,3.8e-07]
[1740108783258,0.81432481,98370.0,98369.0,3.8e-07]
[1740108783703,0.81632481,98370.0,98369.0,3.8e-07]
[1740108787922,0.77632481,98370.0,98369.0,3.8e-07]
[1740108788577,0.79632481,98370.0,98369.0,3.8e-07]
[1740108788816,0.77632481,98370.0,98369.0,3.8e-07]
[1740108797107,0.76178396,98370.0,98369.0,3.8e-07]
[1740108797494,0.73143069,98370.0,98369.0,3.8e-07]
[1740108800960,0.628785,98370.0,98369.0,3.8e-07]
[1740108801889,0.6296361,98370.0,98369.0,3.8e-07]
[1740108804218,0.6293099,98370.0,98369.0,3.8e-07]
[1740108813152,0.6273099,98370.0,98369.0,3.8e-07]
[1740108813549,0.6253099,98370.0,98369.0,3.8e-07]
[1740108813972,0.6273099,98370.0,98369.0,3.8e-07]
[1740108814570,0.6293099,98370.0,98369.0,3.8e-07]
[1740108814869,0.6273099,98370.0,98369.0,3.8e-07]
[1740108815018,0.6253099,98370.0,98369.0,3.8e-07]
[1740108833424,0.6094299,98370.0,98369.0,3.8e-07]
[1740108846884,0.4731511,98370.0,98369.0,3.8e-07]
[1740108847091,0.6256361,98370.0,98369.0,3.8e-07]
[1740108848477,0.6256361,98370.0,98369.0,0.00100038]
[1740108848643,0.4756361,98370.0,98369.0,0.00100038]
[1740108849139,0.4756361,98370.0,98369.0,0.00200038]
[1740108851060,0.4756361,98370.0,98369.0,0.00100038]
[1740108851237,0.4756361,98370.0,98369.0,3.8e-07]
[1740108851535,0.4796361,98370.0,98369.0,3.8e-07]
[1740108851977,0.4776361,98370.0,98369.0,3.8e-07]
[1740108852839,0.4756361,98370.0,98369.0,3.8e-07]
[1740108854700,0.4756361,98370.0,98369.0,0.00100038]
[1740108854909,0.4756361,98370.0,98369.0,0.00200038]
[1740108885094,0.4756361,98370.0,98369.0,0.00100038]
[1740108885243,0.4756361,98370.0,98369.0,3.8e-07]
[1740108885452,0.4756361,98370.0,98369.0,0.00100038]
[1740108885886,0.4756361,98370.0,98369.0,0.00200038]
[1740108892213,0.4756361,98370.0,98369.0,0.02107048]
[1740108893425,0.4756361,98370.0,98369.0,0.00200038]
[1740108894039,0.1533361,98370.0,98369.0,0.00200038]
[1740108894986,0.1533361,98370.0,98369.0,0.00100038]
[1740108895137,0.1533361,98370.0,98369.0,3.8e-07]
[1740108895556,0.1533361,98370.0,98369.0,0.00100038]
[1740108896272,0.1533361,98370.0,98369.0,0.00200038]
[1740108907724,0.2323361,98370.0,98369.0,0.00200038]
[1740108908541,0.2323361,98370.0,98369.0,0.00100038]
[1740108908739,0.48498179,98370.0,98369.0,3.8e-07]
[1740108908942,0.56569587,98370.0,98369.0,3.8e-07]
[1740108909114,0.56869587,98370.0,98369.0,3.8e-07]
[1740108909438,0.56669587,98370.0,98369.0,3.8e-07]
[1740108909775,0.56969587,98370.0,98369.0,3.8e-07]
[1740108909990,0.53928179,98370.0,98369.0,3.8e-07]
[1740108910127,0.53628179,98370.0,98369.0,3.8e-07]
[1740108910527,0.53828179,98370.0,98369.0,3.8e-07]
[1740108911209,0.54128179,98370.0,98369.0,3.8e-07]
[1740108911668,0.53628179,98370.0,98369.0,3.8e-07]
[1740108911895,0.85558179,98370.0,98369.0,3.8e-07]
[1740108912129,0.86358179,98370.0,98369.0,3.8e-07]
[1740108912362,0.86058179,98370.0,98369.0,3.8e-07]
[1740108912526,0.85558179,98370.0,98369.0,3.8e-07]
[1740108912703,0.86158179,98370.0,98369.0,3.8e-07]
[1740108916341,0.85858179,98370.0,98369.0,3.8e-07]
[1740108916871,0.86158179,98370.0,98369.0,3.8e-07]
[1740108917623,0.85858179,98370.0,98369.0,3.8e-07]
[1740108918080,0.86158179,98370.0,98369.0,3.8e-07]
[1740108921597,0.85858179,98370.0,98369.0,3.8e-07]
[1740108922209,0.86058179,98370.0,98369.0,3.8e-07]
[1740108922514,0.85758179,98370.0,98369.0,3.8e-07]
[1740108922665,0.86058179,98370.0,98369.0,3.8e-07]
[1740108930971,0.85558179,98370.0,98369.0,3.8e-07]
[1740108931148,0.86058179,98370.0,98369.0,3.8e-07]
[1740108931559,0.89096562,98370.0,98369.0,3.8e-07]
[1740108936229,0.92550647,98370.0,98369.0,3.8e-07]
[1740108939880,0.94550647,98370.0,98369.0,3.8e-07]
[1740108988653,0.89720647,98370.0,98369.0,3.8e-07]
[1740109027459,0.30251,98354.0,98353.0,0.001701]
[1740109027679,0.43553952,98354.0,98353.0,0.001701]
[1740109029016,0.43553952,98354.0,98353.0,0.002701]
[1740109029791,0.44556379,98354.0,98353.0,0.002701]
[1740109029936,0.44556379,98354.0,98353.0,0.005701]
[1740109030377,0.44556379,98354.0,98353.0,0.002701]
[1740109030839,0.44556379,98354.0,98353.0,0.003701]
[1740109035249,0.45317106,98354.0,98353.0,0.003701]
[1740109038522,0.45317106,98354.0,98353.0,1e-06]
[1740109049348,0.302535,98338.0,98337.0,0.0017014]
[1740109049552,0.43556452,98338.0,98337.0,4e-07]
[1740109049757,0.47010537,98338.0,98337.0,4e-07]
[1740109049980,0.49010537,98338.0,98337.0,4e-07]
[1740109050827,0.49010537,98338.0,98337.0,0.00043361]
[1740109051673,0.49010537,98338.0,98337.0,6.1e-07]
[1740109051876,0.50210537,98338.0,98337.0,6.1e-07]
[1740109053016,0.30255,98328.0,98320.0,0.0017016]
[1740109053214,0.43557952,98328.0,98327.0,0.00183129]
[1740109054396,0.44157952,98328.0,98327.0,0.00183129]
[1740109055503,0.44857952,98328.0,98327.0,0.00283129]
[1740109055677,0.46312037,98328.0,98327.0,2.9e-07]
[1740109056135,0.48312037,98328.0,98327.0,2.9e-07]
[1740109056567,0.56162037,98328.0,98327.0,2.9e-07]
[1740109059514,0.53123654,98328.0,98327.0,2.9e-07]
[1740109061161,0.53883789,98328.0,98327.0,2.9e-07]
[1740109076253,0.56896115,98328.0,98327.0,2.9e-07]
[1740109080041,0.56981225,98328.0,98327.0,2.9e-07]
[1740109090126,0.89211225,98328.0,98327.0,2.9e-07]
[1740109093938,0.7790714,98328.0,98327.0,2.9e-07]
[1740109094688,0.302558,98323.0,98322.0,0.0468]
[1740109094947,0.40520369,98323.0,98322.0,0.04684331]
[1740109096140,0.72850369,98323.0,98322.0,0.04684331]
[1740109096579,0.75872442,98323.0,98322.0,4.331e-05]
[1740109097136,0.76072442,98323.0,98322.0,4.331e-05]
[1740109103914,0.76072442,98323.0,98322.0,0.00174551]
[1740109105228,0.73050369,98323.0,98322.0,0.00174551]
[1740109107707,0.76072866,98323.0,98322.0,0.00174551]
[1740109152382,0.85446951,98323.0,98322.0,0.00174551]
[1740109153315,0.31710185,98321.0,98320.0,1.1e-07]
[1740109153562,0.44997251,98321.0,98320.0,1.1e-07]
[1740109155244,0.45097251,98321.0,98320.0,1.1e-07]
[1740109155493,0.77327251,98321.0,98320.0,1.1e-07]
[1740109156080,0.77427251,98321.0,98320.0,1.1e-07]
[1740109169672,0.62171151,98321.0,98312.0,7.1e-07]
[1740109169875,0.378173,98313.0,98312.0,4.402e-05]
[1740109170078,0.51104366,98313.0,98312.0,4.402e-05]
[1740109170254,0.52558451,98313.0,98312.0,4.402e-05]
[1740109171349,0.52558451,98313.0,98312.0,0.00104402]
[1740109171710,0.52558451,98313.0,98312.0,4.402e-05]
[1740109172120,0.52958451,98313.0,98312.0,4.402e-05]
[1740109172743,0.53258451,98313.0,98312.0,4.402e-05]
[1740109173325,0.85488451,98313.0,98312.0,4.402e-05]
[1740109175971,0.86493212,98313.0,98312.0,4.402e-05]
[1740109184945,0.83470715,98313.0,98312.0,4.402e-05]
[1740109185403,0.86495539,98313.0,98312.0,4.402e-05]